bitfinex/quotes_ETHUSD_20240926
["timestamp","ask_amount","ask_price","bid_price","bid_amount"]
[1727310338747,0.55,2588.1,2587.8,1.2973]
[1727310339087,0.55,2588.1,2587.9,0.06174858]
[1727310339852,4.41384,2588.1,2587.9,0.06174858]
[1727310340613,3.86398,2588.0,2587.9,0.06174858]
[1727310342690,4.41384,2588.1,2587.9,0.06174858]
[1727310343107,6.29217077,2588.5,2588.0,1.3074]
[1727310343314,6.29217077,2588.5,2588.2,1.3074]
[1727310343315,4.41348,2588.4,2588.2,1.3074]
[1727310343801,4.41348,2588.4,2588.3,0.06153519]
[1727310344031,4.41348,2588.4,2588.2,1.3074]
[1727310344205,4.41348,2588.4,2588.3,0.06138972]
[1727310344403,3.86335,2588.5,2588.2,1.3074]
[1727310344768,3.86339,2588.4,2588.3,0.06138972]
[1727310345369,3.86339,2588.4,2588.2,1.3074]
[1727310345867,3.86339,2588.4,2588.3,0.06138972]
[1727310346072,3.86317,2588.6,2588.3,0.06138972]
[1727310346073,0.55,2588.5,2588.3,0.06138972]
[1727310346308,0.55,2588.5,2588.2,1.3074]
[1727310346553,3.86287,2588.8,2588.4,1.2837]
[1727310346817,3.86318,2588.6,2588.4,1.2837]
[1727310347026,3.86318,2588.6,2588.5,0.06121515]
[1727310347571,6.29327976,2588.8,2588.5,0.06121515]
[1727310347911,4.41303,2588.7,2588.5,0.06121515]
[1727310348675,3.86309,2588.6,2588.5,0.06121515]
[1727310348905,4.41309,2588.6,2588.5,0.06121515]
[1727310349409,3.86292,2588.8,2588.5,0.06121515]
[1727310349997,3.86294,2588.7,2588.5,0.06121515]
[1727310350378,7.72554,2588.9,2588.5,0.06121515]
[1727310350570,3.86281,2588.8,2588.5,0.06121515]
[1727310351115,7.72554,2588.9,2588.5,0.06121515]
[1727310351275,3.86282,2588.8,2588.5,0.06121515]
[1727310352005,3.86282,2588.8,2588.5,0.58205967]
[1727310353574,3.86264,2588.9,2588.6,1.2111]
[1727310354042,3.86264,2588.9,2588.7,0.06077883]
[1727310356615,3.86251,2589.0,2588.7,0.06077883]
[1727310356824,3.86251,2589.0,2588.6,1.2111]
[1727310357007,3.86251,2589.0,2588.7,0.06072067]
[1727310357226,3.86225,2589.2,2588.8,1.198]
[1727310357431,3.86225,2589.2,2588.9,0.06040077]
[1727310357840,6.86217,2589.3,2589.0,1.198]
[1727310357841,3.86217,2589.3,2589.0,1.198]
[1727310358145,3.86217,2589.3,2589.0,1.71783585]
[1727310358347,3.86217,2589.3,2589.1,0.06040077]
[1727310360381,3.86219,2589.2,2589.1,0.06040077]
[1727310361092,12.30878316,2589.2,2589.1,0.06040077]
[1727310361245,14.11054204,2589.2,2589.1,0.06040077]
[1727310361473,3.86395,2588.1,2587.6,1.198]
[1727310361648,3.86395,2588.1,2587.8,1.198]
[1727310362185,3.86395,2588.1,2587.9,0.05053815]
[1727310366098,7.72787,2588.1,2587.9,0.05053815]
[1727310366389,3.86392,2588.1,2587.9,0.05053815]
[1727310367196,7.50500316,2588.3,2587.9,0.05053815]
[1727310367405,11.36866316,2588.3,2587.9,0.05053815]
[1727310367631,3.86372,2588.2,2587.9,0.05053815]
[1727310369221,3.86384,2588.1,2587.9,0.05053815]
[1727310370239,3.86398,2588.0,2587.9,0.05053815]
[1727310370731,3.86398,2588.0,2587.6,1.1975]
[1727310371238,7.7281,2588.0,2587.6,1.1975]
[1727310371429,3.86415,2587.9,2587.6,1.1975]
[1727310372146,3.86429,2587.8,2587.6,1.1975]
[1727310372659,3.86429,2587.8,2587.4,8.722]
[1727310372837,3.86429,2587.8,2587.4,10.37019804]
[1727310376049,7.50556316,2587.9,2587.4,14.23504804]
[1727310376341,7.50556316,2587.9,2587.4,6.79504804]
[1727310379757,7.50556316,2587.9,2587.5,0.0505873]
[1727310381240,3.86407,2588.0,2587.5,0.0505873]
[1727310381426,3.86407,2588.0,2587.6,1.2394]
[1727310381784,3.86407,2588.0,2587.7,0.0508392]
[1727310382016,3.86385,2588.1,2587.7,0.0508392]
[1727310382143,3.86347,2588.4,2587.8,1.2855]
[1727310382349,3.86355,2588.3,2587.8,5.66976392]
[1727310382695,3.86341,2588.4,2588.0,1.2855]
[1727310383383,7.72691,2588.4,2588.1,0.05078106]
[1727310383703,3.86341,2588.4,2588.1,0.05078106]
[1727310383853,3.86355,2588.3,2588.1,0.05078106]
[1727310384777,3.86368,2588.2,2588.1,0.05078106]
[1727310390094,3.86368,2588.2,2587.8,1.1922]
[1727310390295,3.86368,2588.2,2588.1,0.05050978]
[1727310390478,3.86368,2588.2,2587.8,1.1922]
[1727310390684,3.86368,2588.2,2587.9,0.05050978]
[1727310393119,7.50537316,2588.0,2587.9,0.05050978]
[1727310393287,3.64139316,2588.0,2587.9,0.05050978]
[1727310393481,7.72778,2588.1,2587.6,1.2237]
[1727310393705,3.86384,2588.1,2587.9,0.05040321]
[1727310393888,3.86398,2588.0,2587.6,1.2237]
[1727310394204,3.86398,2588.0,2587.6,2.476542]
[1727310394410,3.86398,2588.0,2587.6,1.2237]
[1727310394730,3.86398,2588.0,2587.7,0.05040321]
[1727310395249,3.86413,2587.9,2587.7,0.05040321]
[1727310395731,3.86384,2588.1,2587.7,0.05040321]
[1727310395732,7.72781,2588.1,2587.7,0.05040321]
[1727310396518,3.86409,2588.0,2587.7,0.05040321]
[1727310397738,3.86384,2588.1,2587.7,0.05040321]
[1727310397903,3.86417,2587.9,2587.7,0.05040321]
[1727310398550,3.86428,2587.8,2587.7,0.05040321]
[1727310399058,3.86431,2587.8,2587.3,5.16435]
[1727310399239,3.86431,2587.8,2587.3,6.81428004]
[1727310399407,3.86431,2587.8,2587.3,2.94933004]
[1727310399607,3.86431,2587.8,2587.4,0.04907873]
[1727310400760,3.86445,2587.7,2587.4,0.04907873]
[1727310404423,5.54606292,2587.7,2587.4,0.04907873]
[1727310405265,5.54606292,2587.7,2587.4,0.73840865]
[1727310406454,1.68161292,2587.7,2587.4,0.73840865]
[1727310407059,5.54606292,2587.7,2587.4,0.73840865]
[1727310408633,3.86458,2587.6,2587.4,0.73840865]
[1727310408833,3.86458,2587.6,2587.4,0.04907873]
[1727310410232,5.54606292,2587.7,2587.4,0.04907873]
[1727310411810,9.41058292,2587.7,2587.4,0.04907873]
[1727310411971,3.86458,2587.6,2587.4,0.04907873]
[1727310412145,5.54606292,2587.7,2587.4,0.04907873]
[1727310412948,3.86445,2587.7,2587.4,0.04907873]
[1727310418896,2.43427668,2588.2,2587.8,5.12638]
[1727310419094,3.86364,2588.3,2587.9,1.33937381]
[1727310419365,3.86364,2588.3,2588.0,0.04965008]
[1727310419506,3.86383,2588.1,2588.0,0.04965008]
[1727310420067,3.86383,2588.1,2587.7,1.2826]
[1727310420266,3.86408,2588.0,2587.8,0.04965008]
[1727310420889,3.86413,2587.9,2587.8,0.04965008]
[1727310421665,3.86413,2587.9,2587.7,1.2826]
[1727310421870,3.86413,2587.9,2587.8,0.04965008]
[1727310422900,3.86413,2587.9,2587.4,5.66140391]
[1727310423113,3.86413,2587.9,2587.5,0.04965008]
[1727310424011,3.86387,2588.1,2587.6,1.2712]
[1727310424169,3.86242591,2588.0,2587.6,1.2712]
[1727310424576,3.86242591,2588.0,2587.7,0.04965008]
[1727310426109,3.86414,2587.9,2587.7,0.04965008]
[1727310426324,3.86428,2587.8,2587.7,0.04965008]
[1727310426678,3.86428,2587.8,2587.4,1.2064]
[1727310426912,3.86428,2587.8,2587.5,0.04965008]
[1727310429597,1.2371,2587.9,2587.5,0.04965008]
[1727310429797,0.55,2587.9,2587.5,0.56175009]
[1727310430034,3.86401,2588.0,2587.5,4.42638009]
[1727310430197,2.43354019,2588.1,2587.6,5.07595]
[1727310430198,6.29738019,2588.1,2587.6,5.07595]
[1727310430394,2.43354019,2588.1,2587.7,0.95023301]
[1727310430599,2.43354019,2588.2,2587.7,0.99979592]
[1727310430847,3.86371,2588.2,2587.9,1.2114]
[1727310431462,3.86371,2588.2,2588.0,0.04956291]
[1727310432301,3.86383,2588.1,2588.0,0.04956291]
[1727310432527,3.86424,2587.9,2587.7,1.2114]
[1727310432717,1.2575,2588.0,2587.2,3.8948704]
[1727310432718,1.2575,2588.0,2587.3,1.2752]
[1727310432923,3.86451,2587.7,2587.3,1.79223304]
[1727310433717,3.8647,2587.6,2587.3,1.79223304]
[1727310434017,3.8647,2587.6,2587.3,1.2752]
[1727310436771,3.86436,2587.8,2587.3,1.2752]
[1727310436966,4.41444,2587.7,2587.3,1.2752]
[1727310437327,2.43354019,2587.9,2587.3,1.2752]
[1727310437529,11.41927019,2588.0,2587.4,3.86473]
[1727310437736,7.55515019,2588.0,2587.5,0.513993]
[1727310438048,11.41923019,2588.0,2587.5,0.513993]
[1727310438260,3.8643,2587.8,2587.5,0.513993]
[1727310439565,3.8643,2587.8,2587.6,0.04955323]
[1727310440858,7.72871,2587.8,2587.6,0.04955323]
[1727310441177,3.8643,2587.8,2587.6,0.04955323]
[1727310441534,6.29768019,2587.9,2587.4,7.72974]
[1727310441730,3.86414,2587.9,2587.7,0.04791987]
[1727310441937,3.86414,2587.9,2587.5,0.900494]
[1727310442131,6.84768019,2587.9,2587.8,0.04791987]
[1727310442328,6.84768019,2587.9,2587.5,0.900494]
[1727310442574,6.84768019,2587.9,2587.8,0.04791987]
[1727310442767,4.41414,2587.9,2587.5,0.900494]
[1727310442934,6.84967289,2587.9,2587.8,0.04791987]
[1727310443135,6.84967289,2587.9,2587.4,3.86487]
[1727310443379,4.41414,2587.9,2587.8,0.04791987]
[1727310443586,4.41414,2587.9,2587.4,3.86487]
[1727310443737,10.16371289,2588.0,2587.8,0.04791987]
[1727310443935,6.29961289,2588.0,2587.5,5.08409]
[1727310444276,6.29961289,2588.0,2587.9,0.04791987]
[1727310444437,6.29961289,2588.0,2587.5,5.08409]
[1727310444635,6.29961289,2588.0,2587.9,0.04791987]
[1727310444837,2.84145503,2588.1,2587.5,1.2194]
[1727310445146,2.43582416,2587.9,2587.5,1.2194]
[1727310445354,3.86437,2587.8,2587.6,0.04791987]
[1727310451385,3.86443,2587.7,2587.6,0.04791987]
[1727310452845,2.43606284,2587.9,2587.6,0.04791987]
[1727310453046,6.30032284,2587.9,2587.6,0.04791987]
[1727310453603,3.86429,2587.8,2587.6,0.04791987]
[1727310453810,10.16476284,2587.8,2587.6,0.04791987]
[1727310453985,6.30035284,2587.8,2587.6,0.04791987]
[1727310454673,3.86429,2587.8,2587.6,0.04791987]
[1727310455110,6.30035284,2587.8,2587.6,0.04791987]
[1727310455287,7.72866,2587.8,2587.6,0.04791987]
[1727310455671,3.86429,2587.8,2587.6,0.04791987]
[1727310456006,6.30035284,2587.8,2587.6,0.04791987]
[1727310457603,6.30043622,2587.8,2587.6,0.04791987]
[1727310457811,10.16485622,2587.8,2587.6,0.04791987]
[1727310458018,6.30043622,2587.8,2587.6,0.04791987]
[1727310458508,10.16480622,2587.8,2587.6,0.04791987]
[1727310458712,10.16484622,2587.8,2587.6,0.04791987]
[1727310458906,6.30043622,2587.8,2587.6,0.04791987]
[1727310459211,3.86443,2587.7,2587.6,0.04791987]
[1727310459426,3.86443,2587.7,2587.3,1.1957]
[1727310459579,3.86443,2587.7,2587.6,0.04789078]
[1727310460114,6.30043622,2587.8,2587.6,0.04789078]
[1727310460288,6.30043622,2587.8,2587.3,5.06065]
[1727310460490,6.85043622,2587.8,2587.7,0.04789078]
[1727310460707,6.85043622,2587.8,2587.3,5.06065]
[1727310460911,6.85043622,2587.8,2587.4,0.89555404]
[1727310461303,6.85043622,2587.8,2587.5,0.04790047]
[1727310461730,3.86443,2587.7,2587.5,0.04790047]
[1727310461892,3.86443,2587.7,2587.3,1.1957]
[1727310462228,3.86443,2587.7,2587.3,5.06072]
[1727310462434,3.86443,2587.7,2587.4,0.94346051]
[1727310464194,3.86473,2587.5,2587.4,0.94346051]
[1727310464458,7.36188821,2587.5,2587.4,0.04790047]
[1727310464631,10.2040588,2587.5,2587.4,0.04790047]
[1727310464844,3.86503,2587.3,2587.2,0.0298004]
[1727310465129,4.41503,2587.3,2587.2,0.0298004]
[1727310465434,6.8515902,2587.3,2587.2,0.0298004]
[1727310465591,4.41503,2587.3,2587.2,0.0298004]
[1727310466133,6.8515902,2587.3,2587.2,0.0298004]
[1727310466313,4.41503,2587.3,2587.2,0.0298004]
[1727310467205,3.86503,2587.3,2587.2,0.0298004]
[1727310467403,3.86489,2587.4,2587.2,0.0298004]
[1727310469733,3.86489,2587.4,2587.3,0.04722632]
[1727310470059,3.86489,2587.4,2587.2,0.0298004]
[1727310470224,3.86476,2587.5,2587.3,0.04403831]
[1727310470428,3.86476,2587.5,2587.2,0.0298004]
[1727310470629,3.86476,2587.5,2587.4,0.04251789]
[1727310470843,3.86476,2587.5,2587.2,0.0298004]
[1727310471008,3.86476,2587.5,2587.4,0.04235319]
[1727310471212,2.43584194,2587.5,2587.2,0.0298004]
[1727310471452,7.72988,2587.4,2587.2,0.0298004]
[1727310471664,3.86491,2587.4,2587.2,0.0298004]
[1727310473316,7.72988,2587.4,2587.2,0.0298004]
[1727310473655,3.86491,2587.4,2587.2,0.0298004]
[1727310474020,7.72987,2587.4,2587.2,0.0298004]
[1727310475971,3.86491,2587.4,2587.2,0.0298004]
[1727310476259,3.86503,2587.3,2587.2,0.0298004]
[1727310478970,6.29932558,2587.6,2587.2,0.0298004]
[1727310479133,2.43463558,2587.8,2587.3,1.315]
[1727310479334,2.43463558,2587.8,2587.4,0.49885405]
[1727310479335,3.8646,2587.6,2587.4,0.49885405]
[1727310479922,7.72927,2587.6,2587.4,0.49885405]
[1727310480137,7.72927,2587.6,2587.3,1.315]
[1727310480359,3.8646,2587.6,2587.3,1.315]
[1727310482130,7.72928,2587.6,2587.3,1.315]
[1727310482465,3.86476,2587.5,2587.3,1.315]
[1727310482766,3.8646,2587.6,2587.3,1.315]
[1727310484776,3.8646,2587.6,2587.4,0.03391561]
[1727310488451,1.3066,2587.7,2587.4,0.03391561]
[1727310488654,3.86438,2587.8,2587.4,0.03391561]
[1727310488948,3.86438,2587.8,2587.4,1.11291573]
[1727310490565,6.29917104,2587.8,2587.4,0.03391561]
[1727310490786,3.86452,2587.7,2587.4,0.03391561]
[1727310492296,3.86452,2587.7,2587.3,1.315]
[1727310493063,3.8646,2587.6,2587.3,1.315]
[1727310493591,6.29917104,2587.8,2587.3,1.315]
[1727310493793,3.86445,2587.7,2587.3,1.315]
[1727310494877,6.29955839,2587.7,2587.3,1.315]
[1727310495083,3.86445,2587.7,2587.3,1.83598704]
[1727310495304,2.43510839,2587.8,2587.4,3.86487]
[1727310495498,5.11117,2587.9,2587.4,3.86487]
[1727310495499,7.54627839,2587.9,2587.4,3.86487]
[1727310495674,7.54627839,2587.9,2587.5,0.73820523]
[1727310497170,2.43510839,2587.9,2587.5,6.28404047]
[1727310497408,2.43510839,2588.1,2587.7,1.68119524]
[1727310497595,2.43510839,2588.1,2587.6,1.2871]
[1727310497596,6.29909839,2588.0,2587.6,1.2871]
[1727310497794,6.29895839,2588.1,2587.6,5.74839321]
[1727310497987,3.86385,2588.1,2587.6,5.74839321]
[1727310498183,3.86385,2588.1,2587.7,1.12942284]
[1727310498410,6.29918839,2588.0,2587.6,1.88382321]
[1727310498571,3.86408,2588.0,2587.6,1.2871]
[1727310498786,6.29918839,2588.0,2587.6,1.2871]
[1727310498968,3.86408,2588.0,2587.6,1.2871]
[1727310501112,1.2513,2587.9,2587.3,1.2039]
[1727310501325,3.8645,2587.7,2587.3,1.2039]
[1727310501512,3.86459,2587.6,2587.3,1.2039]
[1727310502068,3.8645,2587.7,2587.3,1.2039]
[1727310502226,3.86485,2587.5,2587.2,0.0298004]
[1727310502528,3.86503,2587.3,2587.2,0.0298004]
[1727310502835,5.62733,2587.3,2587.2,0.0298004]
[1727310503009,8.06243839,2587.3,2587.2,0.0298004]
[1727310503331,7.27227734,2587.3,2587.2,0.0298004]
[1727310503682,13.11309329,2587.3,2587.2,0.0298004]
[1727310503922,10.27227734,2587.3,2587.2,0.0298004]
[1727310504323,13.1122162,2587.3,2587.2,0.0298004]
[1727310504487,10.27227734,2587.3,2587.2,0.0298004]
[1727310506023,12.705854,2587.3,2587.2,0.0298004]
[1727310506317,10.27227734,2587.3,2587.2,0.0298004]
[1727310506922,13.1122162,2587.3,2587.2,0.0298004]
[1727310507124,10.27227734,2587.3,2587.2,0.0298004]
[1727310510951,13.11053623,2587.3,2587.2,0.0298004]
[1727310511321,10.27227734,2587.3,2587.2,0.0298004]
[1727310512336,13.10806829,2587.3,2587.2,0.0298004]
[1727310512955,13.10792227,2587.3,2587.2,0.0298004]
[1727310514607,10.27227734,2587.3,2587.2,0.0298004]
[1727310514723,13.10792227,2587.3,2587.2,0.0298004]
[1727310515338,10.27227734,2587.3,2587.2,0.0298004]
[1727310518975,13.61853589,2587.3,2587.2,0.0298004]
[1727310519273,10.67695174,2587.3,2587.2,0.0298004]
[1727310519874,14.02188157,2587.3,2587.2,0.0298004]
[1727310520258,10.67695174,2587.3,2587.2,0.0298004]
[1727310523289,13.50611632,2587.3,2587.2,0.0298004]
[1727310523595,13.50613647,2587.3,2587.2,0.0298004]
[1727310524874,10.67695174,2587.3,2587.2,0.0298004]
[1727310526196,13.50480166,2587.3,2587.2,0.0298004]
[1727310526394,10.67695174,2587.3,2587.2,0.0298004]
[1727310530300,12.36029976,2587.3,2587.2,0.0298004]
[1727310532197,10.67695174,2587.3,2587.2,0.0298004]
[1727310532346,11.81029976,2587.3,2587.2,0.0298004]
[1727310533648,12.76479938,2587.3,2587.2,0.0298004]
[1727310540365,15.59274731,2587.3,2587.2,0.0298004]
[1727310542377,12.76479938,2587.3,2587.2,0.0298004]
[1727310545267,8.11985204,2587.3,2587.2,0.0298004]
[1727310545462,6.35755204,2587.3,2587.2,0.0298004]
[1727310545649,5.54837802,2587.3,2587.2,1.2403004]
[1727310546266,8.38273805,2587.3,2587.2,1.2403004]
[1727310546856,11.93273805,2587.3,2587.2,1.2403004]
[1727310547392,11.93639865,2587.3,2587.2,1.2403004]
[1727310547550,11.93643608,2587.3,2587.2,1.2403004]
[1727310547983,11.93641592,2587.3,2587.2,1.2403004]
[1727310548303,9.09837802,2587.3,2587.2,1.2403004]
[1727310548655,4.41503,2587.3,2587.2,1.2403004]
[1727310551258,8.93778937,2587.3,2587.2,1.2403004]
[1727310552889,6.09837802,2587.3,2587.2,1.2403004]
[1727310554481,8.93778937,2587.3,2587.2,1.2403004]
[1727310554713,8.93814657,2587.3,2587.2,1.2403004]
[1727310556903,6.09837802,2587.3,2587.2,1.2403004]
[1727310557216,8.93814657,2587.3,2587.2,1.2403004]
[1727310557364,6.09837802,2587.3,2587.2,1.2403004]
[1727310560605,8.93814657,2587.3,2587.2,1.2403004]
[1727310560906,6.09837802,2587.3,2587.2,1.2403004]
[1727310572320,6.09837802,2587.3,2587.2,0.0298004]
[1727310576255,2.43374718,2587.3,2587.2,1.3008004]
[1727310576411,6.29841718,2587.6,2587.2,1.3008004]
[1727310576615,3.86467,2587.6,2587.2,1.3008004]
[1727310576812,3.86467,2587.6,2587.4,1.2696]
[1727310577508,3.86473,2587.5,2587.4,1.2696]
[1727310579470,4.41473,2587.5,2587.4,1.2696]
[1727310581363,3.86503,2587.3,2587.2,0.0298004]
[1727310581571,3.86503,2587.3,2587.2,1.3043004]
[1727310582281,6.29794672,2587.3,2587.2,1.3043004]
[1727310583062,6.84794672,2587.3,2587.2,1.3043004]
[1727310583280,6.84808384,2587.3,2587.2,1.3043004]
[1727310587412,4.41503,2587.3,2587.2,1.3043004]
[1727310587810,6.84902804,2587.3,2587.2,1.3043004]
[1727310588131,6.84904316,2587.3,2587.2,1.3043004]
[1727310588437,4.41503,2587.3,2587.2,1.3043004]
[1727310589609,4.41503,2587.3,2587.2,0.0298004]
[1727310590736,6.85039844,2587.3,2587.2,0.0298004]
[1727310590922,6.85039844,2587.3,2587.2,1.2202004]
[1727310591516,4.41503,2587.3,2587.2,1.2202004]
[1727310591836,6.85039844,2587.3,2587.2,1.2202004]
[1727310592627,6.85070697,2587.3,2587.2,1.2202004]
[1727310593077,6.85064412,2587.3,2587.2,1.2202004]
[1727310594079,6.85074988,2587.3,2587.2,1.2202004]
[1727310594570,4.41503,2587.3,2587.2,1.2202004]
[1727310594770,6.85089616,2587.3,2587.2,1.2202004]
[1727310596383,4.41503,2587.3,2587.2,1.2202004]
[1727310596935,6.85079267,2587.3,2587.2,1.2202004]
[1727310597231,4.41503,2587.3,2587.2,1.2202004]
[1727310597651,6.850862,2587.3,2587.2,1.2202004]
[1727310597856,6.85076079,2587.3,2587.2,1.2202004]
[1727310598081,6.85074642,2587.3,2587.2,1.2202004]
[1727310598391,4.41503,2587.3,2587.2,1.2202004]
[1727310599371,6.85086521,2587.3,2587.2,1.2202004]
[1727310600604,6.85086521,2587.3,2587.2,0.0298004]
[1727310600801,6.06632592,2587.3,2587.2,0.0298004]
[1727310601111,6.85085668,2587.3,2587.2,0.0298004]
[1727310601335,6.85090629,2587.3,2587.2,0.0298004]
[1727310601457,6.85097295,2587.3,2587.2,0.0298004]
[1727310601775,4.41503,2587.3,2587.2,0.0298004]
[1727310603101,7.25687176,2587.3,2587.2,0.0298004]
[1727310603598,4.41503,2587.3,2587.2,0.0298004]
[1727310604707,9.85028274,2587.3,2587.2,0.0298004]
[1727310605267,8.53738274,2587.3,2587.2,0.0298004]
[1727310605878,5.69554098,2587.3,2587.2,0.0298004]
[1727310606308,8.53738274,2587.3,2587.2,0.0298004]
[1727310606806,7.25687176,2587.3,2587.2,0.0298004]
[1727310607013,4.41503,2587.3,2587.2,0.0298004]
[1727310608225,7.25687176,2587.3,2587.2,0.0298004]
[1727310608726,6.30131573,2587.3,2587.2,1.2500004]
[1727310609805,3.86503,2587.3,2587.2,0.0298004]
[1727310610207,4.41503,2587.3,2587.2,0.0298004]
[1727310611081,5.82631861,2587.3,2587.2,0.0298004]
[1727310611497,8.66873665,2587.3,2587.2,0.0298004]
[1727310612453,11.66873665,2587.3,2587.2,0.0298004]
[1727310612647,10.12121861,2587.3,2587.2,0.0298004]
[1727310614641,13.47865268,2587.3,2587.2,0.0298004]
[1727310615150,11.80456663,2587.3,2587.2,0.0298004]
[1727310616412,7.25669229,2587.3,2587.2,0.0298004]
[1727310616740,3.86503,2587.3,2587.2,1.2463004]
[1727310616946,6.30052835,2587.3,2587.2,1.2463004]
[1727310618023,4.41503,2587.3,2587.2,1.2463004]
[1727310618780,6.85057384,2587.3,2587.2,1.2463004]
[1727310623182,4.41503,2587.3,2587.2,0.0298004]
[1727310623380,5.52718823,2587.3,2587.2,0.0298004]
[1727310623690,4.41503,2587.3,2587.2,0.0298004]
[1727310624482,6.30116345,2587.3,2587.2,1.2221004]
[1727310624677,3.86503,2587.3,2587.2,1.2221004]
[1727310628907,4.41503,2587.3,2587.2,1.2221004]
[1727310629394,6.850934,2587.3,2587.2,1.2221004]
[1727310630136,4.41503,2587.3,2587.2,1.2221004]
[1727310631329,6.850934,2587.3,2587.2,1.2221004]
[1727310632037,4.41503,2587.3,2587.2,1.2221004]
[1727310632641,6.850934,2587.3,2587.2,1.2221004]
[1727310632796,4.41503,2587.3,2587.2,1.2221004]
[1727310634426,6.30055484,2587.4,2587.2,1.2221004]
[1727310634427,3.86489,2587.4,2587.2,1.2221004]
[1727310634737,3.86503,2587.3,2587.2,1.2221004]
[1727310635097,3.86489,2587.4,2587.2,1.2221004]
[1727310637019,7.72986,2587.4,2587.2,1.2221004]
[1727310637766,3.86503,2587.3,2587.2,1.2221004]
[1727310641619,3.86467,2587.6,2587.3,1.2651]
[1727310641965,3.86467,2587.6,2587.4,0.29765346]
[1727310641966,3.86473,2587.5,2587.4,0.29765346]
[1727310642267,3.86473,2587.5,2587.3,1.2651]
[1727310645246,3.86467,2587.6,2587.3,1.2651]
[1727310645452,10.16386588,2587.8,2587.4,4.86563934]
[1727310645763,3.35583895,2588.3,2587.6,1.2223]
[1727310645764,3.86423,2587.9,2587.6,1.2223]
[1727310647264,2.43507588,2588.1,2587.8,4.94803934]
[1727310647265,3.86392,2588.1,2587.8,4.94803934]
[1727310647447,3.86398,2588.0,2587.9,1.3047]
[1727310647640,3.86392,2588.1,2587.9,1.3047]
[1727310648023,7.72789,2588.1,2587.9,1.3047]
[1727310648285,3.86392,2588.1,2587.9,1.3047]
[1727310648437,7.72784,2588.1,2587.9,1.3047]
[1727310649665,7.72786,2588.1,2587.9,1.3047]
[1727310650179,3.86392,2588.1,2587.9,1.3047]
[1727310650387,7.72785,2588.1,2587.9,1.3047]
[1727310651500,3.86398,2588.0,2587.5,0.49429307]
[1727310651683,3.86359,2588.3,2587.6,1.72486324]
[1727310651684,3.86447,2587.7,2587.6,1.72486324]
[1727310651986,3.86447,2587.7,2587.6,1.3111]
[1727310653692,3.86488,2587.4,2587.3,1.3111]
[1727310654391,3.86503,2587.3,2587.2,0.0298004]
[1727310657774,4.41503,2587.3,2587.2,0.0298004]
[1727310659009,8.66783,2587.3,2587.2,0.0298004]
[1727310659661,11.50358141,2587.3,2587.2,0.0298004]
[1727310660939,8.66783,2587.3,2587.2,0.0298004]
[1727310661139,10.62040907,2587.3,2587.2,0.0298004]
[1727310661598,13.45769218,2587.3,2587.2,0.0298004]
[1727310661804,10.62040907,2587.3,2587.2,0.0298004]
[1727310662202,13.45776415,2587.3,2587.2,0.0298004]
[1727310662408,10.62040907,2587.3,2587.2,0.0298004]
[1727310662800,13.45759475,2587.3,2587.2,0.0298004]
[1727310663233,13.45765431,2587.3,2587.2,0.0298004]
[1727310664254,10.62040907,2587.3,2587.2,0.0298004]
[1727310664731,11.54205355,2587.3,2587.2,0.0298004]
[1727310664893,11.02499877,2587.3,2587.2,0.0298004]
[1727310665904,14.37425157,2587.3,2587.2,0.0298004]
[1727310666293,14.37332421,2587.3,2587.2,0.0298004]
[1727310669352,11.02499877,2587.3,2587.2,0.0298004]
[1727310670858,14.37332421,2587.3,2587.2,0.0298004]
[1727310671356,11.02499877,2587.3,2587.2,0.0298004]
[1727310671652,14.37332421,2587.3,2587.2,0.0298004]
[1727310671853,14.37332421,2587.3,2586.4,0.0375632]
[1727310671854,12.32825934,2586.5,2586.4,0.0375632]
[1727310672153,8.68492,2586.5,2586.4,0.0375632]
[1727310679125,7.41622,2586.5,2586.4,0.0375632]
[1727310681940,7.41622,2586.5,2586.4,1.2681632]
[1727310682801,4.41622,2586.5,2586.4,1.2681632]
[1727310685565,4.41622,2586.5,2586.4,0.0375632]
[1727310690544,5.244451,2586.5,2586.4,0.0375632]
[1727310690744,8.244451,2586.5,2586.4,0.0375632]
[1727310691487,7.41622,2586.5,2586.4,0.0375632]
[1727310692946,7.41622,2586.5,2586.4,1.2543632]
[1727310693358,7.41622,2586.5,2586.4,0.0375632]
[1727310696487,6.86622,2586.5,2586.4,0.0375632]
[1727310697155,6.86622,2586.5,2586.4,1.3100632]
[1727310701095,11.15971631,2586.5,2586.4,0.0375632]
[1727310701391,10.00050239,2586.5,2586.4,0.0375632]
[1727310702104,13.64384173,2586.5,2586.4,0.0375632]
[1727310702306,16.9979918,2586.5,2586.4,0.0375632]
[1727310702601,13.64384173,2586.5,2586.4,0.0375632]
[1727310702810,14.04826033,2586.5,2586.4,0.0375632]
[1727310704514,18.06547031,2586.5,2586.4,0.0375632]
[1727310704812,14.04826033,2586.5,2586.4,0.0375632]
[1727310710412,14.04826033,2586.5,2585.6,0.0375632]
[1727310710617,12.27315934,2585.7,2585.6,0.0375632]
[1727310713735,9.8483466,2585.7,2585.6,0.0375632]
[1727310714435,7.41742,2585.7,2585.6,0.0375632]
[1727310717509,4.41742,2585.7,2585.6,1.2928632]
[1727310717907,4.41742,2585.7,2585.6,1.32842462]
[1727310718226,4.41742,2585.7,2585.6,0.07312462]
[1727310718425,4.41742,2585.7,2585.6,0.0375632]
[1727310719505,4.41742,2585.7,2585.6,0.07317309]
[1727310720905,4.41742,2585.7,2585.6,0.0375632]
[1727310721503,3.86728,2585.8,2585.6,1.3402632]
[1727310721754,3.86728,2585.8,2585.6,1.37587309]
[1727310721921,3.86742,2585.7,2585.6,1.37587309]
[1727310722559,3.86728,2585.8,2585.6,1.37587309]
[1727310722767,6.86706,2586.0,2585.6,1.37587309]
[1727310722768,3.86706,2586.0,2585.6,1.37587309]
[1727310722986,3.86706,2586.0,2585.8,1.2675]
[1727310723434,3.86706,2586.0,2585.9,0.03537727]
[1727310724022,3.86683,2586.1,2585.9,1.25227727]
[1727310724242,3.0,2586.5,2585.9,1.25227727]
[1727310724460,3.86691,2586.1,2585.9,1.25227727]
[1727310725375,3.86662,2586.3,2585.9,1.25227727]
[1727310725560,3.86629,2586.5,2586.1,4.86023934]
[1727310725790,3.86629,2586.5,2586.3,1.2556]
[1727310725791,3.86642,2586.4,2586.3,1.2556]
[1727310726130,7.73262,2586.5,2586.3,1.29059935]
[1727310726464,3.86637,2586.4,2586.3,1.29059935]
[1727310727282,3.86629,2586.5,2586.3,1.2556]